bitfinex/quotes_SOLUSD_20251013
["timestamp","ask_amount","ask_price","bid_price","bid_amount"]
[1760315485912,1e-08,197.31,197.28,5.44270247]
[1760315486312,1e-08,197.31,197.29,0.72]
[1760315486616,1e-08,197.31,197.3,5.06842372]
[1760315488618,1e-08,197.31,197.3,22.1076014]
[1760315488810,1e-08,197.31,197.3,15.94489893]
[1760315489008,1e-08,197.31,197.3,22.1076014]
[1760315489397,5.44270247,197.43,197.3,60.1207793]
[1760315489714,20.8,197.45,197.36,5.44270247]
[1760315490010,5.44270247,197.45,197.38,5.44270247]
[1760315490202,5.44270247,197.44,197.37,5.44270247]
[1760315490403,5.44270247,197.45,197.38,5.44270247]
[1760315490605,5.44270247,197.45,197.39,17.73139469]
[1760315490814,5.44270247,197.44,197.39,17.73139469]
[1760315491035,6.13270247,197.43,197.39,5.06611277]
[1760315491207,5.44270247,197.43,197.39,5.06611277]
[1760315491517,5.44270247,197.43,197.36,18.10977913]
[1760315491518,5.44270247,197.4,197.32,13.36940339]
[1760315491710,5.44270247,197.37,197.33,5.06765316]
[1760315492102,5.44270247,197.34,197.31,5.06794258]
[1760315492415,5.44270247,197.4,197.28,10.87647521]
[1760315492416,5.44270247,197.32,197.3,5.06837266]
[1760315492613,5.44270247,197.31,197.28,5.06893755]
[1760315493126,5.44270247,197.3,197.28,5.06893755]
[1760315493496,5.44270247,197.32,197.28,5.06893755]
[1760315493996,5.44270247,197.32,197.28,5.76893755]
[1760315494196,5.44270247,197.29,197.21,0.7]
[1760315494392,5.44270247,197.27,197.18,0.7]
[1760315494610,20.8,197.32,197.18,17.75027892]
[1760315494611,5.44270247,197.23,197.18,17.75027892]
[1760315494824,5.44270247,197.22,197.18,17.75027892]
[1760315495009,5.44270247,197.19,197.16,5.07183584]
[1760315495221,5.44270247,197.19,197.16,17.75189264]
[1760315495420,5.44270247,197.21,197.16,5.07183584]
[1760315495750,5.44270247,197.19,197.16,5.07183584]
[1760315495917,5.44270247,197.19,197.16,17.75189264]
[1760315496113,5.44270247,197.17,197.15,5.07211346]
[1760315496325,5.44270247,197.2,197.15,5.07211346]
[1760315496736,5.44270247,197.2,197.15,5.77211346]
[1760315496911,5.44270247,197.19,197.15,5.77211346]
[1760315497113,5.44270247,197.18,197.15,5.07211346]
[1760315497410,5.44270247,197.2,197.16,10.87647521]
[1760315497618,0.69,197.2,197.15,5.07211346]
[1760315497824,5.44270247,197.18,197.15,5.07211346]
[1760315498017,5.44270247,197.19,197.15,5.07211346]
[1760315498224,0.69,197.23,197.15,5.07211346]
[1760315498421,5.44270247,197.18,197.15,5.07211346]
[1760315498734,0.69,197.22,197.1,25.36689418]
[1760315498735,5.44270247,197.16,197.12,5.07305194]
[1760315498939,5.44270247,197.13,197.12,5.07305194]
[1760315499445,5.44270247,197.13,197.08,5.07408159]
[1760315499446,6.13270247,197.13,197.08,5.07408159]
[1760315499740,5.44270247,197.09,197.08,5.07408159]
[1760315500116,0.69,197.12,197.08,5.07408159]
[1760315500316,5.44270247,197.09,197.08,5.07408159]
[1760315500522,5.44270247,197.1,197.08,17.75928556]
[1760315500711,5.44270247,197.1,197.05,15.9513293]
[1760315501049,5.44270247,197.1,197.05,29.33846454]
[1760315501538,5.44270247,197.08,197.05,28.63846454]
[1760315501833,0.69,197.11,197.05,28.63846454]
[1760315502038,5.44270247,197.09,197.05,28.63846454]
[1760315502227,5.44270247,197.1,197.05,28.63846454]
[1760315502433,5.44270247,197.1,197.06,0.7]
[1760315502625,5.44270247,197.1,197.07,17.76018672]
[1760315502824,5.44270247,197.09,197.07,17.76018672]
[1760315503637,5.44270247,197.13,197.08,11.57647521]
[1760315503933,5.44270247,197.09,197.07,17.76018672]
[1760315504522,20.8,197.18,197.07,17.76018672]
[1760315504729,5.44270247,197.11,197.07,12.68584766]
[1760315504922,5.44270247,197.12,197.07,12.68584766]
[1760315505127,0.69,197.15,197.07,13.38584766]
[1760315505440,5.44270247,197.12,197.07,13.38584766]
[1760315505639,5.44270247,197.11,197.07,12.68584766]
[1760315505841,20.8,197.06,197.0,0.9]
[1760315506143,5.44270247,197.01,197.0,17.96628449]
[1760315506337,0.69,197.05,197.0,17.96628449]
[1760315506523,5.44270247,197.02,197.0,17.96628449]
[1760315506722,5.44270247,197.01,197.0,17.96628449]
[1760315506917,20.8,197.08,197.0,28.8427597]
[1760315507125,5.44270247,197.05,197.0,28.8427597]
[1760315507318,21.46,197.1,197.0,17.96628449]
[1760315507319,5.44270247,197.03,197.0,17.96628449]
[1760315507722,5.44270247,197.02,197.0,5.27592917]
[1760315508034,6.10270247,197.01,197.0,5.27592917]
[1760315508924,0.66,197.01,197.0,5.27592917]
[1760315509128,6.10270247,197.01,197.0,5.27592917]
[1760315509346,5.44270247,197.01,197.0,0.2]
[1760315509531,6.10270247,197.01,197.0,0.2]
[1760315510429,21.46,197.01,197.0,0.2]
[1760315510632,26.90270247,197.01,197.0,0.2]
[1760315511237,5.07614213,197.0,196.92,0.2]
[1760315511435,5.07614213,197.0,196.92,5.27820434]
[1760315511436,5.44270247,196.93,196.92,5.27820434]
[1760315511746,6.10270247,196.93,196.92,0.2]
[1760315512444,11.54540494,196.93,196.82,5.08078447]
[1760315512647,5.44270247,196.83,196.81,0.1]
[1760315512942,5.44270247,196.85,196.81,18.54363591]
[1760315513144,0.66,196.92,196.83,5.44270247]
[1760315513323,5.44270247,196.9,196.84,0.66]
[1760315513518,0.66,196.95,196.86,5.44270247]
[1760315513726,19.99999999,197.07,196.89,5.44270247]
[1760315513924,19.99999999,197.07,196.88,10.87647521]
[1760315513925,5.44270247,196.95,196.88,16.31917768]
[1760315514146,19.99999999,197.1,196.92,5.44270247]
[1760315514446,5.44270247,197.02,196.95,5.44270247]
[1760315514654,5.44270247,197.0,196.93,0.66]
[1760315514824,21.51,197.01,196.91,5.44270247]
[1760315515024,5.44270247,196.99,196.92,17.7737152]
[1760315515241,5.44270247,196.99,196.92,23.21641767]
[1760315515448,0.71,197.01,196.93,5.44270247]
[1760315515670,5.44270247,196.98,196.92,17.7737152]
[1760315516359,5.44270247,196.97,196.92,17.7737152]
[1760315516531,5.44270247,196.97,196.92,18.4537152]
[1760315516943,5.44270247,196.98,196.92,18.4537152]
[1760315517260,12.68348183,197.11,196.92,49.2874394]
[1760315517465,0.71,197.11,196.99,5.44270247]
[1760315517761,5.44270247,197.08,197.01,5.44270247]
[1760315517940,0.71,197.07,196.96,0.68]
[1760315518257,0.71,197.07,196.93,11.55647521]
[1760315518432,5.44270247,196.99,196.93,11.55647521]
[1760315518628,19.99999999,197.12,196.92,48.6074394]
[1760315518629,5.44270247,196.96,196.92,17.7737152]
[1760315518827,5.44270247,196.98,196.93,0.68]
[1760315519045,5.44270247,196.98,196.94,0.68]
[1760315519556,5.44270247,196.98,196.95,5.07743082]
[1760315519758,5.44270247,197.01,196.96,0.68]
[1760315519936,5.44270247,197.01,196.97,0.68]
[1760315520340,5.44270247,196.99,196.89,0.68]
[1760315520533,5.44270247,196.91,196.86,12.69906287]
[1760315520854,5.44270247,196.9,196.86,12.69906287]
[1760315521154,5.44270247,196.94,196.88,10.87647521]
[1760315521464,5.44270247,197.0,196.91,5.44270247]
[1760315521628,3.36305935,197.07,196.95,5.44270247]
[1760315521829,5.44270247,197.05,196.97,5.44270247]
[1760315522032,3.36305935,197.07,196.99,5.44270247]
[1760315522033,5.44270247,197.07,196.99,5.44270247]
[1760315522340,5.44270247,197.07,196.93,63.96254505]
[1760315522341,5.44270247,197.05,196.97,5.44270247]
[1760315522645,0.71,197.05,196.97,0.68]
[1760315522833,2.65206698,197.13,196.98,10.87647521]
[1760315522834,5.44270247,197.06,196.98,10.87647521]
[1760315523154,5.44270247,197.1,197.02,10.87647521]
[1760315523366,5.44270247,197.12,197.04,16.31917768]
[1760315523657,5.44270247,197.12,197.05,17.76198933]
[1760315523959,5.44270247,197.14,197.06,16.99917768]
[1760315524156,5.44270247,197.11,197.06,0.68]
[1760315524365,5.44270247,197.11,197.05,17.76198933]
[1760315524366,5.44270247,197.08,197.05,5.07485409]
[1760315524563,5.44270247,197.06,196.99,0.68]
[1760315524856,5.44270247,197.07,197.0,10.87647521]
[1760315525067,5.44270247,197.03,196.96,10.87647521]
[1760315525235,5.44270247,197.01,196.96,10.87647521]
[1760315525443,5.44270247,197.01,196.97,0.68]
[1760315525642,5.44270247,197.02,196.99,5.07639981]
[1760315526045,21.51,197.06,196.99,5.75639981]
[1760315526253,5.44270247,197.08,197.01,10.87647521]
[1760315526445,5.44270247,197.08,197.02,0.68]
[1760315526646,5.44270247,197.05,196.99,18.44739935]
[1760315526850,5.44270247,197.06,197.0,10.87647521]
[1760315527046,5.44270247,197.09,197.03,10.87647521]
[1760315527357,0.71,197.15,197.04,6.12270247]
[1760315527559,5.44270247,197.05,197.0,0.68]
[1760315527763,5.44270247,197.03,196.99,12.69099954]
[1760315528057,5.44270247,197.02,197.0,5.07614213]
[1760315528663,5.44270247,197.01,197.0,5.07614213]
[1760315528841,0.71,197.05,197.0,5.07614213]
[1760315529158,5.44270247,197.01,197.0,5.07614213]
[1760315529338,5.44270247,197.03,197.0,5.75614213]
[1760315529541,20.8,197.05,196.97,5.07691526]
[1760315529542,5.44270247,197.01,196.97,5.07691526]
[1760315529767,5.44270247,196.98,196.95,12.69353363]
[1760315529939,5.44270247,196.96,196.81,0.1]
[1760315530140,5.44270247,196.95,196.88,6.12270247]
[1760315530359,5.44270247,196.94,196.88,6.12270247]
[1760315530538,5.44270247,196.93,196.88,0.68]
[1760315530741,25.87594673,197.01,196.84,36.27687778]
[1760315530742,5.44270247,196.95,196.89,6.12270247]
[1760315530955,5.44270247,196.95,196.89,0.68]
[1760315531662,0.71,197.04,196.91,43.16692904]
[1760315531843,5.44270247,197.0,196.93,5.44270247]
[1760315532342,5.44270247,197.0,196.91,54.04340425]
[1760315532343,5.44270247,196.96,196.91,17.77461784]
[1760315532557,0.71,197.0,196.91,17.27461784]
[1760315532558,5.44270247,196.93,196.91,17.27461784]
[1760315532755,5.44270247,196.95,196.91,17.27461784]
[1760315532956,5.44270247,196.94,196.91,17.27461784]
[1760315533465,5.44270247,196.92,196.91,4.57846224]
[1760315533765,5.44270247,196.92,196.88,12.69772808]
[1760315534371,5.44270247,196.89,196.86,5.07954537]
[1760315534547,5.44270247,196.87,196.82,5.08078447]
[1760315534869,0.71,196.93,196.83,0.68]
[1760315535046,0.71,196.93,196.84,5.44270247]
[1760315535246,21.51,196.96,196.86,5.44270247]
[1760315535446,5.44270247,196.93,196.85,0.68]
[1760315535646,5.44270247,196.89,196.81,24.00613368]
[1760315535842,5.44270247,196.88,196.81,24.00613368]
[1760315536094,5.44270247,196.85,196.81,0.1]
[1760315536364,5.44270247,196.82,196.81,0.1]
[1760315536743,6.15270247,196.82,196.81,0.1]
[1760315537353,0.71,196.82,196.81,0.1]
[1760315537756,11.23348694,196.82,196.81,0.1]
[1760315537957,16.67618941,196.82,196.81,0.1]
[1760315538264,16.67618941,196.82,196.8,0.1]
[1760315538462,10.88540494,196.81,196.8,0.1]
[1760315538848,20.8,196.78,196.71,5.18360106]
[1760315539049,5.44270247,196.72,196.71,0.1]
[1760315539457,5.44270247,196.73,196.71,5.18359082]
[1760315539770,10.35834246,196.76,196.73,5.08310882]
[1760315540657,19.99999999,196.91,196.74,0.68]
[1760315540866,10.35834246,196.84,196.75,10.35834246]
[1760315541048,10.35834246,196.78,196.73,17.79088089]
[1760315541253,20.8,196.83,196.73,5.08310882]
[1760315541454,10.35834246,196.78,196.73,17.79088089]
[1760315541657,10.35834246,196.78,196.73,18.47088089]
[1760315541864,10.35834246,196.74,196.71,5.18355497]
[1760315542073,10.35834246,196.74,196.71,18.57261907]
[1760315542273,10.35834246,196.74,196.71,5.18355497]
[1760315542775,10.35834246,196.78,196.72,0.68]
[1760315542952,0.71,196.83,196.72,21.91481767]
[1760315543262,10.35834246,196.82,196.73,0.68]
[1760315543677,10.35834246,196.84,196.76,10.35834246]
[1760315543874,10.35834246,196.86,196.78,10.35834246]
[1760315544053,10.35834246,196.8,196.77,5.08207551]
[1760315544972,20.8,196.87,196.71,10.97647521]
[1760315544973,0.71,196.82,196.75,5.08239086]
[1760315545158,10.35834246,196.78,196.75,5.08239086]
[1760315545359,19.99999999,196.91,196.75,5.08239086]
[1760315545360,19.99999999,196.98,196.76,11.56647521]
[1760315545558,0.71,196.93,196.8,10.87647521]
[1760315545883,10.35834246,196.91,196.83,17.78184219]
[1760315546054,10.35834246,196.87,196.83,5.08052634]
[1760315546253,0.71,196.9,196.81,5.08080645]
[1760315546458,10.35834246,196.89,196.81,17.78341302]
[1760315546669,10.35834246,196.87,196.81,17.78341302]
[1760315546864,10.35834246,196.85,196.81,5.08080645]
[1760315547183,10.35834246,196.83,196.78,5.08158424]
[1760315547473,10.35834246,196.8,196.78,5.08158424]
[1760315547849,10.35834246,196.8,196.72,5.77336722]
[1760315548053,10.35834246,196.78,196.72,5.77336722]
[1760315548472,20.8,196.86,196.72,5.08336722]
[1760315548473,10.35834246,196.76,196.72,5.08336722]
[1760315548675,10.35834246,196.76,196.72,17.79178527]
[1760315548882,10.35834246,196.76,196.72,18.48178527]
[1760315549070,10.35834246,196.74,196.72,5.08336722]
[1760315549378,10.35834246,196.76,196.72,5.77336722]
[1760315549580,0.71,196.85,196.73,0.69]
[1760315549758,10.35834246,196.76,196.72,17.79178527]
[1760315550674,10.35834246,196.76,196.72,0.69]
[1760315550878,0.71,196.85,196.74,10.87647521]
[1760315551107,10.35834246,196.86,196.77,10.35834246]
[1760315551383,10.35834246,196.87,196.79,10.35834246]
[1760315551683,10.35834246,196.87,196.78,0.69]
[1760315551865,0.71,196.89,196.79,17.78545657]
[1760315552070,10.35834246,196.9,196.81,21.23481767]
[1760315552383,10.35834246,196.92,196.83,21.23481767]
[1760315552569,10.35834246,196.92,196.84,0.69]
[1760315553077,10.35834246,196.95,196.85,21.23481767]
[1760315553269,0.71,196.99,196.86,0.69]
[1760315553455,11.06834246,196.99,196.9,10.87647521]
[1760315553656,11.06834246,196.99,196.91,10.35834246]
[1760315553657,10.35834246,196.99,196.91,10.35834246]
[1760315553875,10.35834246,196.99,196.92,17.7737152]
[1760315554282,10.35834246,196.98,196.92,17.7737152]
[1760315554987,10.35834246,197.0,196.92,18.4637152]
[1760315555552,10.35834246,196.96,196.92,17.7737152]
[1760315555756,10.35834246,196.94,196.92,5.07820434]
[1760315555966,11.06834246,196.94,196.87,17.77822928]
[1760315556176,10.35834246,196.91,196.87,17.77822928]
[1760315557278,10.35834246,196.91,196.87,18.46822928]
[1760315557480,10.35834246,196.91,196.84,18.47093882]
[1760315557680,10.35834246,196.87,196.81,17.78333401]
[1760315557987,10.35834246,196.87,196.82,0.69]
[1760315558191,10.35834246,196.89,196.83,0.69]
[1760315558360,10.35834246,196.92,196.85,10.35834246]
[1760315558693,0.71,197.15,197.0,10.87647521]
[1760315558977,10.35834246,197.11,197.02,10.35834246]
[1760315559283,10.35834246,197.09,197.01,0.69]
[1760315559476,10.35834246,197.12,197.03,10.35834246]
[1760315559683,10.35834246,197.1,197.03,10.35834246]
[1760315560188,10.35834246,197.08,197.02,17.76469392]
[1760315560564,10.35834246,197.04,197.0,5.07608002]
[1760315560881,10.35834246,197.12,197.01,0.69]
[1760315560882,0.71,197.12,197.01,0.69]
[1760315561065,10.35834246,197.1,197.02,10.35834246]
[1760315561390,10.55834246,197.31,197.17,20.8]
[1760315561593,0.2,197.31,197.27,10.35834246]
[1760315561900,0.2,197.31,197.17,0.69]
[1760315561901,20.8,197.25,197.17,0.69]
[1760315562187,10.35834246,197.23,197.16,10.35834246]
[1760315562363,10.35834246,197.24,197.17,10.35834246]
[1760315562563,10.35834246,197.23,197.16,10.35834246]
[1760315562785,10.35834246,197.21,197.14,5.07253728]
[1760315562974,10.35834246,197.2,197.14,5.07253728]
[1760315563783,0.71,197.22,197.14,5.07253728]
[1760315563974,10.35834246,197.2,197.14,15.43087974]
[1760315564175,10.35834246,197.19,197.14,5.07253728]
[1760315564479,12.67341996,197.27,197.14,5.07253728]
[1760315564480,0.2,197.31,197.22,10.87647521]
[1760315564784,0.2,197.31,197.23,0.65]
[1760315565173,0.2,197.31,197.26,10.35834246]
[1760315565473,0.2,197.31,197.27,5.0691945]
[1760315565675,0.2,197.31,197.26,10.35834246]
[1760315565881,0.92,197.31,197.23,5.72002107]
[1760315566188,0.92,197.31,197.25,10.35834246]
[1760315566380,0.2,197.31,197.28,10.35834246]
[1760315566584,0.2,197.31,197.29,10.35834246]
[1760315567079,0.92,197.31,197.26,10.35834246]
[1760315567485,0.92,197.31,197.17,0.65]
[1760315567486,10.35834246,197.27,197.17,0.65]
[1760315567793,10.35834246,197.49,197.31,10.87647521]
[1760315567995,10.35834246,197.46,197.39,10.35834246]
[1760315568361,10.35834246,197.47,197.4,10.35834246]
[1760315568567,11.07834246,197.48,197.41,10.35834246]
[1760315568762,0.92,197.51,197.34,10.87647521]
[1760315568978,16.34147883,197.51,197.44,10.35834246]
[1760315569166,20.8,197.46,197.36,0.65]
[1760315569476,20.8,197.42,197.36,11.00834246]
[1760315570288,20.8,197.42,197.37,10.35834246]
[1760315570492,20.8,197.42,197.36,11.00834246]
[1760315570701,10.35834246,197.37,197.27,10.87647521]
[1760315570988,5.0645538,197.46,197.29,10.87647521]
[1760315570989,20.8,197.39,197.29,10.87647521]
[1760315571170,20.8,197.39,197.33,10.35834246]
[1760315571365,0.72,197.44,197.3,0.65]
[1760315571366,10.35834246,197.41,197.35,5.06713959]
[1760315571603,10.35834246,197.41,197.33,5.06762593]
[1760315571775,10.35834246,197.39,197.32,10.35834246]
[1760315571970,10.35834246,197.35,197.29,5.06867873]
[1760315572201,10.35834246,197.35,197.27,15.42746901]
[1760315572501,10.35834246,197.34,197.27,15.42746901]
[1760315572869,10.35834246,197.34,197.27,5.06912655]
[1760315573199,10.35834246,197.28,197.19,10.35834246]
[1760315573493,5.0691945,197.27,197.18,0.65]
[1760315573699,10.35834246,197.25,197.18,5.72146829]
[1760315573871,10.35834246,197.26,197.19,10.35834246]
[1760315574399,0.72,197.33,197.22,10.35834246]
[1760315574698,2.64643124,197.54,197.18,15.9479435]
[1760315574699,0.67,197.37,197.27,10.35834246]
[1760315574992,10.35834246,197.34,197.27,10.35834246]
[1760315575400,10.35834246,197.32,197.25,11.05834246]
[1760315575565,10.35834246,197.31,197.25,5.06965656]
[1760315575771,10.35834246,197.3,197.25,5.06965656]
[1760315576179,26.53745895,197.34,197.25,5.06965656]
[1760315576376,10.35834246,197.31,197.25,5.06965656]
[1760315576680,10.35834246,197.28,197.23,5.07001994]
[1760315576878,10.35834246,197.26,197.21,5.07052408]
[1760315577199,10.35834246,197.25,197.19,5.77104572]
[1760315577498,10.35834246,197.24,197.19,5.77104572]
[1760315577697,0.67,197.38,197.24,10.87647521]
[1760315577878,10.35834246,197.33,197.26,10.35834246]
[1760315578403,10.35834246,197.35,197.28,10.35834246]
[1760315578600,10.35834246,197.37,197.3,15.42657366]
[1760315578775,20.8,197.34,197.3,15.42657366]
[1760315578980,20.8,197.34,197.28,15.4270441]
[1760315579874,20.8,197.34,197.29,10.35834246]
[1760315580073,20.8,197.34,197.28,15.4270441]
[1760315580410,10.35834246,197.3,197.23,10.35834246]
[1760315580596,0.67,197.33,197.01,149.27272726]
[1760315580597,10.35834246,197.31,197.24,10.35834246]
[1760315580803,20.8,197.34,197.27,10.35834246]
[1760315580976,10.35834246,197.38,197.31,10.35834246]
[1760315581174,5.73625824,197.39,197.28,0.7]
[1760315581374,26.53625824,197.39,197.3,10.35834246]
[1760315581611,10.35834246,197.35,197.29,10.35834246]
[1760315581911,10.35834246,197.34,197.28,11.05834246]
[1760315582280,25.86625824,197.39,197.24,43.09459259]
[1760315582281,0.67,197.35,197.24,18.44476497]
[1760315582610,10.35834246,197.31,197.24,28.80310743]
[1760315582784,10.35834246,197.29,197.24,18.44476497]
[1760315582990,10.35834246,197.3,197.25,0.7]
[1760315583305,10.35834246,197.27,197.24,5.06985116]
[1760315583596,10.35834246,197.27,197.22,5.77027426]
[1760315583801,10.35834246,197.25,197.22,214.5]
[1760315583990,10.35834246,197.23,197.22,80.4]
[1760315584509,10.35834246,197.23,197.2,214.5]
[1760315584714,0.67,197.24,197.2,214.5]
[1760315584909,10.35834246,197.22,197.2,214.5]
[1760315585214,11.02834246,197.21,197.2,80.4]
[1760315585385,11.02834246,197.21,197.15,214.5]
[1760315585710,10.35834246,197.17,197.15,214.5]
[1760315585887,10.35834246,197.17,197.07,10.87647521]
[1760315585888,11.02834246,197.16,197.08,134.1]
[1760315586083,10.35834246,197.12,197.08,214.5]
[1760315586286,0.67,197.14,197.08,214.5]
[1760315586612,10.35834246,197.09,197.08,214.5]
[1760315587601,0.67,197.18,197.08,215.2]
[1760315587788,19.99999999,197.25,197.05,214.5]
[1760315587789,12.70072649,197.09,197.05,214.5]
[1760315587990,20.8,197.15,197.05,214.5]
[1760315587991,12.70072649,197.07,197.05,214.5]
[1760315588309,17.74703299,197.22,197.05,219.57475838]
[1760315588486,12.70072649,197.15,197.08,12.70072649]
[1760315588806,12.70072649,197.15,197.09,5.07382414]
[1760315589004,12.70072649,197.17,197.11,12.70072649]
[1760315589196,12.70072649,197.17,197.11,227.20072649]
[1760315589501,12.70072649,197.16,197.11,214.5]
[1760315589706,12.70072649,197.15,197.11,214.5]
[1760315589910,12.70072649,197.16,197.11,214.5]
[1760315590507,0.67,197.26,197.14,12.70072649]
[1760315590720,12.70072649,197.22,197.15,12.70072649]
[1760315590919,12.70072649,197.23,197.17,5.07176548]
[1760315591223,12.70072649,197.23,197.17,17.75117918]
[1760315591517,12.70072649,197.22,197.17,17.75117918]
[1760315591721,12.70072649,197.24,197.18,0.7]
[1760315591895,0.67,197.31,197.2,12.70072649]
[1760315592087,0.67,197.34,197.24,12.70072649]
[1760315592409,12.70072649,197.29,197.23,12.70072649]
[1760315592609,12.70072649,197.29,197.17,28.62765439]
[1760315592610,0.67,197.36,197.25,12.70072649]
[1760315592797,12.70072649,197.31,197.25,12.70072649]
[1760315593124,12.70072649,197.3,197.26,5.06945148]
[1760315593324,12.70072649,197.27,197.07,19.99999999]
[1760315593617,25.86818574,197.31,197.17,13.40072649]
[1760315593618,12.70072649,197.24,197.17,13.40072649]
[1760315594218,12.70072649,197.24,197.18,12.70072649]
[1760315594596,12.70072649,197.23,197.18,5.07150826]
[1760315594796,0.67,197.34,197.22,12.70072649]
[1760315594986,0.67,197.34,197.23,13.40072649]
[1760315595191,12.70072649,197.32,197.26,12.70072649]
[1760315595609,12.70072649,197.31,197.25,12.70072649]
[1760315595917,12.70072649,197.31,197.25,13.40072649]
[1760315596302,12.70072649,197.31,197.26,5.06945148]
[1760315596500,12.70072649,197.31,197.26,5.76945148]
[1760315596697,12.70072649,197.29,197.26,5.06945148]
[1760315596895,12.70072649,197.28,197.26,5.06945148]
[1760315597110,12.70072649,197.29,197.26,5.06945148]
[1760315597299,0.67,197.31,197.26,5.06945148]
[1760315597507,12.70072649,197.27,197.17,0.7]
[1760315597703,21.47,197.3,197.18,23.5772017]
[1760315597913,12.70072649,197.26,197.2,12.70072649]
[1760315598124,12.70072649,197.29,197.22,12.70072649]
[1760315598328,12.70072649,197.3,197.23,13.40072649]
[1760315598508,12.70072649,197.28,197.24,5.06996552]
[1760315598716,12.70072649,197.27,197.23,0.7]
[1760315599021,12.70072649,197.25,197.22,5.07047966]
[1760315599199,20.8,197.29,197.22,5.07047966]
[1760315599405,12.70072649,197.29,197.22,31.14740531]
[1760315599610,12.70072649,197.3,197.24,12.70072649]
[1760315599927,12.70072649,197.27,197.23,0.7]
[1760315600298,12.70072649,197.28,197.23,0.7]
[1760315600495,12.70072649,197.27,197.24,5.06996552]
[1760315601150,12.70072649,197.25,197.21,5.07073677]
[1760315601499,12.70072649,197.24,197.21,5.07073677]
[1760315601700,11.09720441,197.24,197.21,5.07073677]
[1760315601996,20.8,197.27,197.21,5.07073677]
[1760315602210,11.09720441,197.25,197.21,5.77073677]
[1760315602415,11.09720441,197.27,197.21,29.54478312]
[1760315602597,12.66940631,197.33,197.23,11.09720441]
[1760315602598,0.67,197.33,197.23,11.09720441]
[1760315602796,11.09720441,197.3,197.24,0.7]
[1760315602996,11.09720441,197.27,197.21,17.74757871]
[1760315603199,11.09720441,197.25,197.21,17.74757871]
[1760315603402,11.09720441,197.25,197.21,18.44757871]
[1760315603734,20.8,197.31,197.19,11.09720441]
[1760315603735,11.09720441,197.22,197.19,5.0709958]
[1760315603936,11.09720441,197.2,197.09,25.3682843]
[1760315604123,11.09720441,197.18,197.11,11.79720441]
[1760315604419,11.09720441,197.2,197.13,11.09720441]
[1760315604616,11.09720441,197.2,197.14,5.07253728]
[1760315604813,12.67349079,197.27,197.17,11.09720441]
[1760315604814,20.8,197.27,197.17,11.09720441]
[1760315605013,11.09720441,197.2,197.15,0.67]
[1760315605323,11.09720441,197.17,197.14,5.07253728]
[1760315605997,0.68,197.21,197.12,5.07283497]
[1760315605998,11.09720441,197.16,197.12,5.07283497]
[1760315606197,11.09720441,197.15,197.12,5.07283497]
[1760315606794,11.09720441,197.15,197.11,5.07330931]
[1760315607015,11.09720441,197.13,197.09,5.07382414]
[1760315607631,11.09720441,197.1,197.05,5.07464213]
[1760315607834,0.68,197.18,197.09,11.09720441]
[1760315608037,11.09720441,197.16,197.09,11.09720441]
[1760315608409,0.68,197.23,197.15,11.09720441]
[1760315608616,11.09720441,197.18,197.1,0.67]
[1760315608914,11.09720441,197.17,197.11,5.07330931]
[1760315609116,20.8,197.2,197.11,5.07330931]
[1760315609117,11.09720441,197.16,197.11,5.07330931]
[1760315609318,0.68,197.18,197.12,11.09720441]
[1760315609523,11.77720441,197.18,197.12,11.09720441]
[1760315609721,6.92189759,197.17,197.11,24.67848019]
[1760315610851,6.92189759,197.22,197.15,6.92189759]
[1760315611741,6.92189759,197.21,197.15,6.92189759]
[1760315612119,6.92189759,197.18,197.14,5.07253728]
[1760315612450,6.92189759,197.18,197.12,5.07279708]
[1760315612627,6.92189759,197.15,197.12,5.07279708]
[1760315612835,7.60189759,197.15,197.09,5.07382414]
[1760315613231,6.92189759,197.12,197.06,6.92189759]
[1760315613423,6.92189759,197.12,197.06,11.99649415]
[1760315614120,6.92189759,197.08,197.05,5.07473058]
[1760315614347,6.92189759,197.09,197.05,5.07473058]
[1760315614716,6.92189759,197.08,197.02,19.61050168]
[1760315614921,6.92189759,197.07,197.02,17.76423092]
[1760315615650,6.92189759,197.06,197.02,5.07562683]
[1760315615852,6.92189759,197.11,197.04,6.92189759]
[1760315616159,6.92189759,197.13,197.07,6.92189759]
[1760315616519,0.68,197.21,197.11,6.92189759]
[1760315616722,6.92189759,197.16,197.1,7.59189759]
[1760315616926,6.92189759,197.15,197.1,5.07356671]
[1760315617230,6.92189759,197.19,197.12,17.7983728]
[1760315618350,6.92189759,197.19,197.13,18.4247811]
[1760315618728,6.92189759,197.26,197.18,6.92189759]
[1760315618947,0.68,197.29,197.2,17.7983728]